bitfinex/quotes_ETHUSD_20241009
["timestamp","ask_amount","ask_price","bid_price","bid_amount"]
[1728497672821,0.05,2431.7,2431.3,0.8169]
[1728497673248,0.05,2431.7,2431.4,4.19495722]
[1728497673449,0.05,2431.7,2431.5,4.11267]
[1728497674360,0.05,2431.7,2431.6,4.19475718]
[1728497674742,0.05,2431.7,2431.6,4.99785718]
[1728497675059,0.05,2431.7,2431.6,5.9089099]
[1728497675764,0.05,2431.7,2431.6,5.82666272]
[1728497676118,0.05,2431.7,2431.6,5.9088908]
[1728497676352,0.05,2431.7,2431.6,5.82666272]
[1728497678169,0.05,2431.7,2431.6,9.37666272]
[1728497678759,0.05,2431.7,2431.6,8.82666272]
[1728497683270,0.05,2431.7,2431.3,0.7997]
[1728497683530,0.05,2431.7,2431.3,4.11287]
[1728497683814,0.05,2431.7,2431.3,8.22581]
[1728497684019,4.16242,2431.7,2431.2,4.11317]
[1728497684171,4.94742,2431.7,2431.2,4.11317]
[1728497684371,0.835,2431.7,2431.2,4.11317]
[1728497684579,4.94736,2431.7,2431.2,8.22626]
[1728497684780,4.94736,2431.7,2431.2,4.11309]
[1728497685118,4.11252,2431.6,2431.2,4.11309]
[1728497685302,4.11277,2431.5,2431.1,4.11335]
[1728497685513,4.11277,2431.5,2430.6,4.11414]
[1728497685514,0.785,2431.0,2430.6,4.11418]
[1728497686006,4.89853,2431.0,2430.6,4.11418]
[1728497686230,4.89853,2431.0,2430.5,4.11435]
[1728497686534,0.785,2431.0,2430.7,4.11396]
[1728497686739,0.7844,2431.4,2430.9,4.11354]
[1728497687077,4.89734,2431.4,2430.9,4.11354]
[1728497687535,4.11304,2431.3,2430.9,4.11354]
[1728497687733,4.11304,2431.3,2430.7,4.11391]
[1728497687734,4.11321,2431.2,2430.7,8.22784]
[1728497687906,4.11321,2431.2,2430.8,4.11387]
[1728497688088,4.11303,2431.3,2430.9,4.11368]
[1728497688427,4.1132,2431.2,2430.8,4.11387]
[1728497688586,4.11302,2431.3,2430.8,4.11377]
[1728497688987,4.11321,2431.2,2430.8,4.11377]
[1728497690408,4.11302,2431.3,2430.8,4.11386]
[1728497690588,8.2262,2431.3,2430.8,4.11386]
[1728497690927,4.11337,2431.1,2430.7,4.11403]
[1728497691909,4.11302,2431.3,2430.6,4.11408]
[1728497692087,4.11322,2431.2,2430.8,4.11386]
[1728497692536,4.11302,2431.3,2430.8,4.11386]
[1728497692739,4.11302,2431.3,2430.7,4.11396]
[1728497692740,4.11327,2431.2,2430.7,4.11396]
[1728497693090,4.11339,2431.1,2430.5,4.11436]
[1728497693401,0.489742,2431.3,2430.4,4.11444]
[1728497693402,4.11387,2430.8,2430.4,4.11444]
[1728497694137,4.11404,2430.7,2430.3,4.23471]
[1728497694431,4.11388,2430.8,2430.3,4.23471]
[1728497694631,4.11388,2430.8,2430.3,8.34933]
[1728497695063,4.89549,2430.9,2430.4,4.11445]
[1728497695232,4.1133,2431.2,2430.7,4.11395]
[1728497695433,4.895,2431.2,2430.7,4.11395]
[1728497695757,4.895,2431.2,2430.7,8.22787]
[1728497696063,4.895,2431.2,2430.7,4.11392]
[1728497696223,4.895,2431.2,2430.8,4.11375]
[1728497696427,0.7817,2431.2,2430.9,4.11368]
[1728497696758,0.7817,2431.2,2430.8,4.11375]
[1728497696964,0.7817,2431.2,2430.9,4.11362]
[1728497697956,0.7817,2431.2,2430.8,4.11375]
[1728497698370,0.7817,2431.2,2430.8,8.22753]
[1728497698534,0.7817,2431.2,2430.8,4.11375]
[1728497699372,4.11351,2431.1,2430.6,4.11408]
[1728497699669,8.22721,2431.0,2430.5,7.1143]
[1728497699969,8.22721,2431.0,2430.5,4.1143]
[1728497699970,4.11377,2430.9,2430.5,4.1143]
[1728497700763,4.11377,2430.9,2430.3,0.12]
[1728497700764,4.11454,2430.4,2430.3,0.12]
[1728497701301,4.88274,2430.4,2430.3,0.12]
[1728497704027,5.43274,2430.4,2430.3,0.12]
[1728497704275,8.43274,2430.4,2430.3,0.12]
[1728497704566,8.85838028,2430.4,2430.3,0.12]
[1728497704766,10.62401234,2430.4,2430.3,0.12]
[1728497705176,7.07401234,2430.4,2430.3,0.12]
[1728497705329,6.64837206,2430.4,2430.3,0.12]
[1728497706238,4.11422,2430.6,2430.3,0.12]
[1728497706688,4.11439,2430.5,2430.3,0.12]
[1728497706844,8.22885,2430.5,2430.3,0.12]
[1728497707048,4.11439,2430.5,2430.3,0.12]
[1728497707351,4.11454,2430.4,2430.3,0.12]
[1728497707560,5.711033,2430.4,2430.3,0.12]
[1728497708177,6.261033,2430.4,2430.3,0.12]
[1728497708362,9.261033,2430.4,2430.3,0.12]
[1728497709386,9.68673726,2430.4,2430.3,0.12]
[1728497709589,18.01081926,2430.4,2430.3,0.12]
[1728497709993,9.68673726,2430.4,2430.3,0.12]
[1728497710354,9.261033,2430.4,2430.3,0.12]
[1728497711796,21.198223,2430.4,2430.3,0.12]
[1728497711994,19.621352,2430.4,2430.3,0.12]
[1728497712194,14.550633,2430.4,2430.3,0.12]
[1728497712348,9.261033,2430.4,2430.3,0.12]
[1728497713879,8.711033,2430.4,2430.3,0.12]
[1728497714803,41.455857,2430.4,2430.3,0.12]
[1728497715108,29.637727,2430.4,2430.3,0.12]
[1728497715251,26.673872,2430.4,2430.3,0.12]
[1728497716217,26.673872,2430.4,2429.5,0.00080411]
[1728497716218,13.17132032,2429.6,2429.5,0.00080411]
[1728497716357,13.17132032,2429.6,2429.0,0.120993]
[1728497716358,4.93875,2429.1,2429.0,0.120993]
[1728497716557,10.17217032,2429.1,2429.0,0.120993]
[1728497716781,6.36762803,2429.1,2429.0,0.120993]
[1728497716999,4.11661,2429.2,2429.0,0.120993]
[1728497717000,4.11659,2429.2,2429.0,0.120993]
[1728497717299,4.11675,2429.1,2429.0,0.120993]
[1728497719079,9.35017032,2429.1,2429.0,0.120993]
[1728497719590,10.17217032,2429.1,2429.0,0.120993]
[1728497719916,11.60104635,2429.1,2429.0,0.120993]
[1728497722234,11.05104635,2429.1,2429.0,0.120993]
[1728497722739,11.60104635,2429.1,2429.0,0.120993]
[1728497725526,4.11675,2429.1,2429.0,0.120993]
[1728497726033,4.11659,2429.2,2429.0,0.120993]
[1728497726432,4.11651,2429.3,2429.0,0.120993]
[1728497726672,4.11632,2429.4,2429.0,0.120993]
[1728497726807,0.8126,2429.8,2429.1,4.869]
[1728497727126,4.11575,2429.7,2429.2,0.50723264]
[1728497727327,4.11602,2429.6,2429.1,4.86901]
[1728497727533,4.11602,2429.6,2429.2,4.11657]
[1728497728028,4.116,2429.6,2429.1,4.86914]
[1728497728233,8.23204,2429.6,2429.1,4.86914]
[1728497728435,0.7876,2429.8,2429.1,0.7524]
[1728497728606,8.2331,2429.3,2429.0,0.120993]
[1728497728802,4.11662,2429.2,2429.0,0.120993]
[1728497729006,4.11655,2429.3,2429.0,0.120993]
[1728497729209,4.11675,2429.1,2429.0,0.120993]
[1728497729733,8.644945,2429.2,2429.0,0.120993]
[1728497729906,4.11675,2429.1,2429.0,0.120993]
[1728497730404,4.11661,2429.2,2429.0,0.120993]
[1728497730918,4.11638,2429.4,2429.0,0.120993]
[1728497731121,4.11602,2429.6,2429.1,0.7702]
[1728497731346,4.11602,2429.6,2429.2,4.11656]
[1728497731696,4.11648,2429.3,2429.1,0.7702]
[1728497732318,4.11618,2429.5,2429.1,0.7702]
[1728497732319,4.11626,2429.4,2429.1,0.7702]
[1728497732748,4.11608,2429.5,2429.1,0.7702]
[1728497733177,4.11625,2429.4,2429.1,0.7702]
[1728497733361,4.11675,2429.1,2429.0,0.120993]
[1728497733973,4.939483,2429.4,2429.0,4.237903]
[1728497734177,4.11625,2429.4,2429.0,0.120993]
[1728497735366,4.11625,2429.4,2429.0,4.237903]
[1728497735575,4.11576,2429.7,2429.1,4.11669]
[1728497735780,4.11576,2429.7,2429.2,0.8244]
[1728497735781,4.11591,2429.6,2429.2,0.8244]
[1728497736260,4.1161,2429.5,2429.2,0.8244]
[1728497736467,4.1161,2429.5,2429.0,4.237793]
[1728497736468,0.823201,2429.5,2429.0,0.120993]
[1728497736785,4.11667,2429.2,2429.0,0.120993]
[1728497736936,4.11675,2429.1,2429.0,0.120993]
[1728497739191,4.92295,2429.1,2429.0,0.120993]
[1728497739341,5.47295,2429.1,2429.0,0.120993]
[1728497740653,12.00375,2429.1,2428.7,0.54237327]
[1728497740852,12.00375,2429.1,2427.6,0.00143896]
[1728497740853,4.1187,2428.0,2427.6,0.00143896]
[1728497741176,4.11878,2427.9,2427.6,0.00143896]
[1728497741412,4.11879,2427.9,2427.6,0.00143896]
[1728497741687,4.11855,2428.1,2427.6,0.00143896]
[1728497741688,4.68342032,2428.1,2427.6,0.00143896]
[1728497741839,8.23776,2427.9,2427.6,0.00143896]
[1728497742039,4.11888,2427.9,2427.6,0.00143896]
[1728497742282,0.55162203,2428.0,2427.6,0.00143896]
[1728497742485,4.11904,2427.8,2427.6,0.00143896]
[1728497742697,4.11912,2427.7,2427.6,0.00143896]
[1728497742852,6.309036,2427.7,2427.6,0.00143896]
[1728497743060,5.759036,2427.7,2427.6,0.00143896]
[1728497743468,6.309036,2427.7,2427.6,0.00143896]
[1728497743986,6.309036,2427.7,2426.6,0.120993]
[1728497743987,4.12053,2426.9,2426.6,0.120993]
[1728497744162,4.12024,2427.1,2426.6,0.120993]
[1728497744163,4.1208,2426.8,2426.6,0.120993]
[1728497744673,4.12023,2427.1,2426.6,4.241983]
[1728497744847,4.12065,2426.8,2426.6,0.120993]
[1728497745042,9.35424032,2426.7,2426.6,0.120993]
[1728497745267,9.35424032,2426.7,2426.6,0.070993]
[1728497745676,4.12082,2426.7,2426.6,0.070993]
[1728497745948,12.35424032,2426.7,2426.6,0.070993]
[1728497746161,14.23862935,2426.7,2426.6,0.070993]
[1728497746391,14.78862935,2426.7,2426.6,0.070993]
[1728497746560,11.78862935,2426.7,2426.6,0.070993]
[1728497747401,6.55520903,2426.7,2426.6,0.070993]
[1728497747684,4.12065,2426.8,2426.6,0.070993]
[1728497747881,4.12082,2426.7,2426.6,0.070993]
[1728497748485,4.12065,2426.8,2426.6,0.070993]
[1728497748699,7.11981,2427.3,2426.6,0.070993]
[1728497748700,1.42948609,2428.2,2426.7,0.7653]
[1728497748878,9.25619605,2428.3,2427.1,0.7653]
[1728497749184,4.11896,2427.8,2427.2,4.1198]
[1728497749397,4.11898,2427.8,2427.2,4.1198]
[1728497749746,4.11888,2427.9,2427.2,4.1198]
[1728497749949,4.11917,2427.7,2427.1,0.7653]
[1728497750148,4.11973,2427.4,2426.8,4.8859]
[1728497750459,8.23882,2427.6,2426.9,4.12037]
[1728497750677,4.11949,2427.5,2426.9,4.12037]
[1728497750858,4.1194,2427.6,2426.8,4.88583]
[1728497751194,4.11948,2427.5,2426.9,4.12046]
[1728497751550,4.11982,2427.3,2426.8,4.88594]
[1728497751702,4.11949,2427.5,2426.8,4.88594]
[1728497751859,4.11949,2427.5,2426.8,4.88581]
[1728497752062,4.11949,2427.5,2426.9,4.12039]
[1728497752400,4.11983,2427.3,2426.8,4.88581]
[1728497753101,4.11983,2427.3,2426.8,0.7653]
[1728497753254,4.11974,2427.4,2426.8,0.7653]
[1728497753460,4.11988,2427.3,2426.8,4.88591]
[1728497753662,4.11988,2427.3,2426.8,0.7653]
[1728497754054,4.12013,2427.2,2426.8,0.7653]
[1728497754253,4.12008,2427.2,2426.8,0.7653]
[1728497754809,4.11988,2427.3,2426.8,0.7653]
[1728497755158,4.11998,2427.2,2426.8,0.7653]
[1728497755365,4.12022,2427.1,2426.6,4.191973]
[1728497755609,8.24078,2427.0,2426.6,0.070993]
[1728497755903,4.12032,2427.0,2426.6,0.070993]
[1728497756203,4.11982,2427.3,2426.8,4.12051]
[1728497756404,4.11999,2427.2,2426.7,4.12082]
[1728497757405,4.12017,2427.1,2426.6,4.191863]
[1728497757605,4.11999,2427.2,2426.6,4.191863]
[1728497757773,4.12044,2427.0,2426.6,0.070993]
[1728497758477,4.12044,2427.0,2426.6,4.191963]
[1728497758678,4.12049,2426.9,2426.6,0.070993]
[1728497759209,4.12044,2427.0,2426.6,0.070993]
[1728497759507,4.12057,2426.9,2426.6,0.070993]
[1728497759706,4.12044,2427.0,2426.6,0.070993]
[1728497760007,4.944494,2427.0,2426.6,0.070993]
[1728497760177,4.1208,2426.8,2426.6,0.070993]
[1728497760380,4.12082,2426.7,2426.6,0.070993]
[1728497761107,4.67082,2426.7,2426.6,0.070993]
[1728497761811,4.12082,2426.7,2426.6,0.070993]
[1728497762012,4.944969,2426.7,2426.6,0.070993]
[1728497762179,1.643154,2427.0,2426.6,0.070993]
[1728497762180,4.944484,2427.0,2426.6,0.070993]
[1728497762380,0.824054,2427.0,2426.6,0.070993]
[1728497762584,0.7756,2427.3,2426.6,0.070993]
[1728497762585,4.12082,2426.7,2426.6,0.070993]
[1728497762799,0.7756,2427.3,2426.6,0.070993]
[1728497762800,4.12067,2426.8,2426.6,0.070993]
[1728497765739,4.94497,2426.7,2426.6,0.070993]
[1728497766372,4.94497,2426.7,2426.6,0.020993]
[1728497768739,4.12068,2426.8,2426.6,0.776193]
[1728497769032,4.12056,2426.9,2426.6,0.776193]
[1728497769790,4.12057,2426.9,2426.6,0.776193]
[1728497770031,4.12042,2427.0,2426.6,0.776193]
[1728497770032,4.12065,2426.8,2426.6,0.776193]
[1728497770239,4.12049,2426.9,2426.6,0.776193]
[1728497770608,4.12066,2426.8,2426.6,0.776193]
[1728497771927,4.12054,2426.9,2426.6,0.776193]
[1728497772437,4.12066,2426.8,2426.6,0.776193]
[1728497773144,4.12082,2426.7,2426.6,0.020993]
[1728497776484,4.12042,2427.0,2426.6,0.020993]
[1728497776688,4.12059,2426.9,2426.6,0.020993]
[1728497776983,4.12048,2427.0,2426.6,0.020993]
[1728497777152,4.12044,2427.0,2426.6,0.020993]
[1728497777355,4.12058,2426.9,2426.6,0.020993]
[1728497777536,4.12076,2426.8,2426.6,0.020993]
[1728497777742,4.12082,2426.7,2426.6,0.020993]
[1728497782339,4.67082,2426.7,2426.6,0.020993]
[1728497785815,4.12082,2426.7,2426.6,0.020993]
[1728497786014,3.0,2427.0,2426.6,0.020993]
[1728497786015,4.12046,2427.0,2426.6,0.020993]
[1728497786246,4.12056,2426.9,2426.6,0.020993]
[1728497786543,4.12065,2426.8,2426.7,0.7962]
[1728497786852,4.12058,2426.9,2426.7,0.7962]
[1728497787210,4.12065,2426.8,2426.7,0.7962]
[1728497787807,4.12065,2426.8,2426.6,0.020993]
[1728497787808,4.12082,2426.7,2426.6,0.020993]
[1728497788653,4.1205,2426.9,2426.6,0.020993]
[1728497790172,4.12041,2427.0,2426.6,0.020993]
[1728497790350,4.12052,2426.9,2426.6,0.020993]
[1728497791864,4.12025,2427.1,2426.7,0.7694]
[1728497792194,4.12023,2427.1,2426.7,4.89011]
[1728497792409,4.11966,2427.4,2427.0,4.1203]
[1728497792701,4.11966,2427.4,2426.6,0.9301683]
[1728497792702,4.119,2427.8,2427.3,4.11963]
[1728497792853,4.119,2427.8,2427.4,0.7528]
[1728497793074,4.11872,2428.0,2427.5,4.11944]
[1728497793312,4.11872,2428.0,2427.6,0.7528]
[1728497793313,4.1187,2428.0,2427.6,0.7528]
[1728497793531,4.11801,2428.4,2427.6,0.7528]
[1728497793532,4.11886,2427.9,2427.6,0.7528]
[1728497793969,8.2371,2428.1,2427.6,0.7528]
[1728497794168,4.11879,2427.9,2427.6,0.7528]
[1728497794373,4.11903,2427.8,2427.6,0.7528]
[1728497795706,4.11879,2427.9,2427.6,0.7528]
[1728497796517,4.11846,2428.1,2427.6,0.7528]
[1728497796816,4.11869,2428.0,2427.6,0.7528]
[1728497797114,4.1189,2427.9,2427.6,0.7528]
[1728497797315,4.11896,2427.8,2427.6,0.7528]
[1728497797513,4.11931,2427.6,2426.8,0.7585]
[1728497797813,4.11964,2427.4,2427.0,4.12023]
[1728497798173,4.11964,2427.4,2426.8,0.7585]
[1728497798174,4.12003,2427.2,2426.8,0.7585]
[1728497798413,4.11993,2427.3,2426.8,4.87913]
[1728497798709,4.12023,2427.1,2426.8,0.7585]
[1728497798917,4.11993,2427.3,2426.8,0.7585]
[1728497799207,4.12002,2427.2,2426.8,0.7585]
[1728497799416,4.12031,2427.0,2426.8,0.7585]
[1728497799774,4.6144115,2427.2,2426.8,0.7585]
[1728497800085,4.12033,2427.0,2426.8,0.7585]
[1728497800805,4.12022,2427.1,2426.8,0.7585]
[1728497801180,8.24049,2427.1,2426.8,0.7585]
[1728497801416,4.12022,2427.1,2426.8,0.7585]
[1728497801805,4.11989,2427.3,2426.8,4.87906]
[1728497802177,4.11998,2427.2,2426.8,4.87906]
[1728497802419,4.11966,2427.4,2426.8,5.7811603]
[1728497802721,4.11989,2427.3,2426.8,5.7811603]
[1728497802921,4.12013,2427.2,2426.8,0.7585]
[1728497803123,0.55,2427.3,2426.8,0.7585]
[1728497803431,4.12063,2426.9,2426.6,0.020993]
[1728497804036,8.24054,2427.1,2426.6,4.141973]
[1728497804320,0.55,2427.3,2426.6,4.141973]
[1728497804482,4.1199,2427.3,2426.8,4.12051]
[1728497804684,4.12007,2427.2,2426.7,4.94095]
[1728497805083,4.11966,2427.4,2426.7,0.8203]
[1728497805387,8.24084,2427.0,2426.7,0.8203]
[1728497805583,4.12041,2427.0,2426.7,0.8203]
[1728497806206,4.11982,2427.3,2426.8,4.12052]
[1728497806743,4.11982,2427.3,2426.9,4.12047]
[1728497806895,11.82190396,2428.0,2426.7,5.4372673]
[1728497806896,4.11956,2427.5,2427.0,4.89419]
[1728497807099,4.11956,2427.5,2427.0,0.7739]
[1728497807296,8.23974,2427.3,2427.0,0.7739]
[1728497807503,4.11973,2427.4,2427.0,0.7739]
[1728497807832,4.11981,2427.3,2427.0,0.7739]
[1728497808685,4.12033,2427.0,2426.7,0.7854]
[1728497809015,4.12052,2426.9,2426.7,0.7854]
[1728497809333,4.12044,2427.0,2426.7,0.7854]
[1728497809834,4.1205,2426.9,2426.7,0.7854]
[1728497810122,4.12062,2426.9,2426.7,0.7854]
[1728497810324,4.532682,2426.9,2426.7,0.7854]
[1728497810508,4.532682,2426.9,2426.6,0.020993]
[1728497811386,4.12065,2426.8,2426.6,0.020993]
[1728497812008,4.12082,2426.7,2426.6,0.020993]
[1728497812459,4.67082,2426.7,2426.6,0.020993]
[1728497814142,9.4773832,2426.7,2426.6,0.020993]
[1728497815293,34.6769942,2426.7,2426.6,0.020993]
[1728497815496,35.52278824,2426.7,2426.6,0.020993]
[1728497815851,35.09934584,2426.7,2426.6,0.020993]
[1728497817314,0.8218,2425.6,2424.7,0.69306199]
[1728497817646,0.8218,2425.6,2424.6,0.81890412]
[1728497817647,4.12389,2424.9,2424.6,0.81890412]
[1728497817797,4.9445,2425.6,2424.6,0.00080412]
[1728497817798,0.8218,2425.1,2424.6,0.00080412]
[1728497817998,4.12414,2424.8,2424.6,0.00080412]
[1728497818197,4.12422,2424.7,2424.6,0.00080412]
[1728497818496,4.949056,2424.7,2424.6,0.00080412]
[1728497818695,8.533376,2424.7,2424.6,0.00080412]
[1728497818946,5.770856,2424.7,2424.6,0.00080412]
[1728497819525,6.320856,2424.7,2424.6,0.00080412]
[1728497821174,5.499056,2424.7,2424.6,0.00080412]
[1728497822680,12.461876,2424.7,2424.6,0.00080412]
[1728497822825,15.461876,2424.7,2424.6,0.00080412]
[1728497823409,4.1266,2423.3,2423.2,0.035]
[1728497824239,4.6766,2423.3,2423.2,0.035]
[1728497824432,4.6766,2423.3,2422.4,0.7719]
[1728497824433,4.12686,2423.2,2422.5,4.11295]
[1728497824729,4.12686,2423.2,2422.6,4.12769]
[1728497824928,4.1266,2423.3,2422.8,4.12741]
[1728497825129,4.1266,2423.3,2422.6,5.028934]
[1728497825130,4.12678,2423.2,2422.6,5.028934]
[1728497825331,4.12737,2422.9,2422.3,4.12817]
[1728497825565,4.12683,2423.2,2422.1,4.90043]
[1728497825886,4.12667,2423.3,2422.3,4.12827]
[1728497826044,4.12739,2422.9,2422.3,5.026139]
[1728497826258,0.767667,2423.2,2421.7,0.120993]
[1728497826259,4.12782,2422.6,2421.9,0.30671021]
[1728497826552,4.12782,2422.6,2421.7,0.120993]
[1728497826553,4.12782,2422.6,2422.1,4.12855]
[1728497826764,4.12782,2422.6,2421.9,4.12886]
[1728497827052,4.12782,2422.6,2421.9,8.25767]
[1728497827053,4.12798,2422.5,2421.9,8.25767]
[1728497827184,4.12782,2422.6,2421.9,4.12882]
[1728497827185,4.12814,2422.4,2421.9,4.12882]
[1728497827384,4.12831,2422.3,2421.9,0.86857432]
[1728497827596,4.12831,2422.3,2421.7,4.250213]
[1728497827597,0.7994,2422.5,2421.7,0.120993]
[1728497827890,0.767667,2423.2,2421.7,0.120993]
[1728497827891,4.12916,2421.8,2421.7,0.120993]
[1728497828386,4.12916,2421.8,2420.7,0.30671021]
[1728497828387,4.13086,2420.8,2420.7,0.30671021]
[1728497828587,4.13086,2420.8,2420.0,5.23218694]
[1728497828588,4.13053,2421.0,2420.2,4.13187]
[1728497828818,4.67934,2421.7,2420.9,4.13067]
[1728497829033,4.12934,2421.7,2421.1,4.70294041]
[1728497829232,4.12853,2422.2,2420.6,4.78554956]
[1728497829233,4.12926,2421.8,2420.6,0.7719]
[1728497829396,4.12926,2421.8,2421.0,4.13036]
[1728497829596,4.12946,2421.7,2421.0,4.13049]
[1728497829819,4.13016,2421.3,2420.6,0.7719]
[1728497829999,4.12981,2421.5,2420.6,0.7719]
[1728497830222,4.17668,2423.3,2420.3,5.14679843]
[1728497830223,4.12783,2422.6,2421.1,0.7719]
[1728497830534,0.7994,2422.7,2421.3,4.12997]
[1728497830535,4.92708,2422.7,2421.3,4.12997]
[1728497830715,4.92708,2422.7,2421.5,4.12955]
[1728497830716,4.12852,2422.2,2421.5,4.12955]
[1728497830915,4.12852,2422.2,2421.3,4.12997]
[1728497831222,4.12882,2422.0,2421.2,4.13005]
[1728497831531,4.12842,2422.3,2421.5,4.12957]
[1728497831734,4.12876,2422.1,2421.3,4.1299]
[1728497831898,4.12876,2422.1,2421.4,4.12982]
[1728497832094,4.12863,2422.2,2421.4,0.825972]
[1728497832438,4.12883,2422.0,2421.4,4.955812]
[1728497832643,4.12864,2422.1,2421.4,4.955812]
[1728497832996,4.12824,2422.4,2421.5,4.12966]
[1728497833342,4.12787,2422.6,2421.6,0.86138408]
[1728497833636,4.12787,2422.6,2421.7,4.12922]
[1728497833789,4.12787,2422.6,2421.7,4.12925]
[1728497833995,4.12796,2422.5,2421.8,4.12913]
[1728497834227,4.12755,2422.8,2421.6,0.7788]
[1728497834459,0.90652572,2422.8,2422.0,4.12872]
[1728497834733,4.12763,2422.7,2422.2,0.005]
[1728497835094,0.81055715,2423.0,2422.3,0.7788]
[1728497835095,4.12716,2423.0,2422.3,0.7788]
[1728497835295,4.12732,2422.9,2422.3,0.7788]
[1728497835538,0.767667,2423.2,2422.3,0.7788]
[1728497835853,0.767667,2423.2,2422.3,1.270042]
[1728497835854,4.12706,2423.1,2422.3,1.270042]
[1728497836009,4.12706,2423.1,2422.4,4.12813]
[1728497836519,4.1267,2423.3,2422.6,4.1277]
[1728497837031,4.12628,2423.5,2422.6,4.12768]
[1728497837332,8.25346,2423.3,2422.6,4.12768]
[1728497837539,4.12696,2423.1,2422.4,4.12803]
[1728497837838,0.412628,2423.4,2422.3,0.7788]
[1728497837839,4.12738,2422.9,2422.3,0.7788]
[1728497838231,4.12746,2422.8,2422.3,0.7788]
[1728497838408,4.12738,2422.9,2422.3,0.7788]
[1728497838600,4.12771,2422.7,2422.3,0.7788]
[1728497838803,4.12765,2422.7,2422.2,0.005]
[1728497839004,4.952842,2422.9,2422.2,0.005]
[1728497839204,9.080232,2422.9,2422.2,4.13338]
[1728497839458,0.825442,2422.9,2422.4,4.12811]
[1728497839609,4.12705,2423.1,2422.4,4.12811]
[1728497839947,1.212128,2423.4,2422.4,4.12803]
[1728497840147,1.212128,2423.4,2422.2,0.005]
[1728497840148,4.12756,2422.8,2422.2,0.005]
[1728497840443,1.212128,2423.4,2422.2,0.005]
[1728497840642,4.12814,2422.4,2422.2,0.005]
[1728497840844,4.1283,2422.3,2422.2,0.005]
[1728497842046,4.6783,2422.3,2422.2,0.005]
[1728497844021,4.12789,2422.6,2422.2,0.005]
[1728497844555,0.7995,2422.7,2422.2,0.005]
[1728497844556,4.12823,2422.4,2422.2,0.005]
[1728497845120,4.12811,2422.5,2422.2,0.005]
[1728497845554,4.12773,2422.7,2422.2,0.7771]
[1728497846077,4.1274,2422.9,2422.3,4.12825]
[1728497846280,4.12706,2423.1,2422.5,4.12796]
[1728497846431,4.12637,2423.5,2422.8,4.91555]
[1728497846633,4.12709,2423.1,2422.8,0.7881]
[1728497846864,4.12667,2423.3,2422.8,0.7881]
[1728497847054,4.12667,2423.3,2422.8,4.91555]
[1728497847055,0.4539298,2423.2,2422.8,4.91555]
[1728497847257,4.12636,2423.5,2422.9,4.12718]
[1728497847459,4.12636,2423.5,2423.0,4.12695]
[1728497847979,4.12577,2423.8,2423.2,4.12664]
[1728497848148,4.12577,2423.8,2423.3,4.12658]
[1728497848467,4.12577,2423.8,2423.3,4.91459]
[1728497848688,4.125,2424.3,2423.8,4.12573]
[1728497848832,4.12477,2424.4,2423.9,0.7881]
[1728497849036,4.12477,2424.4,2423.9,4.91366]
[1728497849334,4.12422,2424.7,2424.0,4.1253]
[1728497849533,4.1234,2425.2,2423.9,0.7881]
[1728497849733,4.12456,2424.5,2424.0,4.12531]
[1728497849933,4.12434,2424.7,2424.2,4.12503]
[1728497850456,0.82483,2424.7,2424.3,4.12488]
[1728497850659,0.82483,2424.7,2424.2,4.12498]
[1728497850660,4.12402,2424.9,2424.4,4.12472]
[1728497850870,4.12419,2424.8,2424.5,0.7881]
[1728497851135,0.20407614,2425.4,2424.2,0.7881]
[1728497851136,4.12355,2425.1,2424.2,0.7881]
[1728497851362,4.12439,2424.6,2423.9,0.7881]
[1728497851572,4.93038,2424.9,2423.9,0.7881]
[1728497851573,4.12503,2424.3,2423.9,0.7881]
[1728497851874,4.12541,2424.0,2423.9,0.7881]
[1728497852472,4.1261,2423.6,2423.4,0.754]
[1728497852774,4.1261,2423.6,2422.5,4.70294041]
[1728497852775,4.12711,2423.0,2422.9,0.754]
[1728497853153,4.12695,2423.1,2422.9,0.754]
[1728497853366,4.12646,2423.4,2422.5,4.12781]
[1728497853367,4.12754,2422.8,2422.5,0.754]
[1728497853565,4.12762,2422.7,2422.5,0.754]
[1728497853774,0.7666,2423.4,2422.5,0.754]
[1728497853775,8.25443,2423.0,2422.5,0.754]
[1728497853989,0.825443,2423.0,2422.6,4.12768]
[1728497854184,4.12721,2423.0,2422.5,4.88183]
[1728497854355,4.12689,2423.2,2422.5,4.88183]
[1728497854677,4.1271,2423.1,2422.5,4.88183]
[1728497855079,4.12689,2423.2,2422.5,4.88183]
[1728497855080,4.12689,2423.2,2422.6,4.12769]
[1728497855254,4.12689,2423.2,2422.7,4.12759]
[1728497855609,4.12689,2423.2,2422.5,9.00969]
[1728497855784,4.12704,2423.1,2422.5,4.88183]
[1728497855952,4.12704,2423.1,2422.6,4.12775]
[1728497856153,4.12779,2422.6,2422.5,0.754]
[1728497856658,0.55,2423.3,2422.5,0.754]
[1728497856659,4.12671,2423.3,2422.8,4.12735]
[1728497857067,4.12671,2423.3,2422.5,0.30654694]
[1728497857068,4.12753,2422.8,2422.5,0.30654694]
[1728497857221,4.12753,2422.8,2422.5,0.30653558]
[1728497857222,4.12771,2422.7,2422.5,0.30653558]
[1728497857519,4.12771,2422.7,2422.2,4.43992558]
[1728497857520,4.12762,2422.7,2422.2,4.43992558]
[1728497857718,4.12762,2422.7,2422.3,0.30653558]
[1728497857887,4.12723,2423.0,2422.4,0.30653558]
[1728497858217,4.12656,2423.4,2422.6,4.12772]